bitfinex-derivatives/quotes_BTCF0:USTF0_20250905
["timestamp","ask_amount","ask_price","bid_price","bid_amount"]
[1757038033226,0.26368723,111380.0,111370.0,0.32631215]
[1757038033421,0.27258116,111380.0,111370.0,0.09635492]
[1757038033623,0.27258116,111380.0,111370.0,0.32631215]
[1757038033825,0.27258116,111380.0,111370.0,0.68711215]
[1757038034025,0.26368723,111380.0,111370.0,0.68711215]
[1757038034534,0.27290526,111380.0,111370.0,0.68711215]
[1757038034827,0.26368723,111380.0,111370.0,0.68711215]
[1757038035027,0.26368723,111380.0,111370.0,0.7028279]
[1757038035722,0.27288251,111380.0,111370.0,0.7028279]
[1757038036127,0.04292528,111380.0,111370.0,0.7028279]
[1757038036328,0.27288251,111380.0,111370.0,0.7028279]
[1757038037834,0.27288251,111380.0,111370.0,0.47287067]
[1757038038034,0.55048489,111380.0,111370.0,0.11207067]
[1757038038433,0.09057043,111380.0,111370.0,0.11207067]
[1757038038627,0.55048489,111380.0,111370.0,0.11207067]
[1757038038828,0.55048489,111380.0,111370.0,0.10207067]
[1757038039129,0.55048489,111380.0,111370.0,0.11207067]
[1757038040032,1.37464489,111380.0,111370.0,0.11207067]
[1757038041538,1.37464489,111380.0,111370.0,0.03234]
[1757038042832,1.32699974,111380.0,111370.0,0.03234]
[1757038043137,1.37464489,111380.0,111370.0,0.03234]
[1757038043938,1.37464489,111380.0,111370.0,0.02234]
[1757038044133,1.73544489,111380.0,111370.0,0.06401576]
[1757038044340,1.98544489,111380.0,111370.0,0.06401576]
[1757038044541,1.98544489,111380.0,111360.0,0.07411576]
[1757038044738,0.67527238,111370.0,111360.0,0.10677576]
[1757038045037,0.67527238,111370.0,111360.0,0.10667576]
[1757038045235,0.67527238,111370.0,111360.0,0.09667576]
[1757038045429,0.90522961,111370.0,111360.0,0.09667576]
[1757038045627,0.67527238,111370.0,111360.0,0.09767576]
[1757038045832,0.67527238,111370.0,111360.0,0.09867576]
[1757038046642,0.31447238,111370.0,111360.0,0.09867576]
[1757038048739,0.02293,111370.0,111360.0,1.27281299]
[1757038048945,0.02293,111370.0,111360.0,0.88879723]
[1757038049742,0.25298723,111380.0,111370.0,0.03604]
[1757038049938,0.31447238,111380.0,111370.0,0.46081018]
[1757038050644,0.08451515,111380.0,111370.0,0.44743018]
[1757038051043,0.31447238,111380.0,111370.0,0.44743018]
[1757038053143,0.31447238,111380.0,111370.0,0.38346]
[1757038054049,0.31447238,111380.0,111370.0,0.61341723]
[1757038055047,0.31447238,111380.0,111370.0,0.38346]
[1757038055836,0.54442961,111380.0,111370.0,0.38346]
[1757038056043,0.31447238,111380.0,111370.0,0.38346]
[1757038056238,0.31447238,111380.0,111370.0,0.46319067]
[1757038056446,0.31447238,111380.0,111370.0,0.10239067]
[1757038057546,0.08451515,111380.0,111370.0,0.10239067]
[1757038057745,0.02293,111380.0,111370.0,1.0465279]
[1757038058052,0.26568723,111390.0,111380.0,0.03623]
[1757038058354,0.31323238,111390.0,111380.0,0.70698581]
[1757038058542,0.08327515,111390.0,111380.0,0.70698581]
[1757038058742,0.07057515,111390.0,111380.0,1.04698581]
[1757038058939,0.30053238,111390.0,111380.0,1.04698581]
[1757038059254,0.30053238,111390.0,111380.0,1.53098581]
[1757038059850,0.30053238,111390.0,111380.0,1.53198581]
[1757038060047,0.30053238,111390.0,111380.0,1.30202858]
[1757038060252,0.31447238,111390.0,111380.0,1.30202858]
[1757038060551,0.31447238,111390.0,111380.0,1.52841581]
[1757038060951,0.31447238,111390.0,111380.0,1.29845858]
[1757038061150,0.31447238,111390.0,111380.0,1.52841581]
[1757038061456,0.31447238,111390.0,111380.0,1.52941581]
[1757038061655,0.31447238,111390.0,111380.0,1.52841581]
[1757038061851,0.31447238,111390.0,111380.0,0.70541581]
[1757038062057,0.31447238,111390.0,111380.0,0.62541723]
[1757038062241,0.31447238,111390.0,111380.0,0.62898723]
[1757038062945,0.25196913,111400.0,111380.0,1.44894446]
[1757038063146,0.32254428,111400.0,111390.0,0.67736653]
[1757038063351,0.32244428,111400.0,111390.0,0.67736653]
[1757038064453,0.09248705,111400.0,111390.0,0.67736653]
[1757038064753,0.32244428,111400.0,111390.0,0.4474093]
[1757038064948,0.02293,111400.0,111390.0,2.14466653]
[1757038065145,0.02293,111400.0,111390.0,1.76462238]
[1757038065341,0.02293,111400.0,111390.0,1.70071723]
[1757038066152,0.02293,111400.0,111390.0,2.02071723]
[1757038066349,0.27607751,111410.0,111400.0,0.03285]
[1757038066648,0.32362266,111410.0,111400.0,0.34007508]
[1757038066849,0.32362266,111410.0,111400.0,0.70087508]
[1757038069450,0.08463515,111410.0,111400.0,0.70087508]
[1757038069648,0.07069515,111410.0,111400.0,0.70087508]
[1757038069845,0.07069515,111410.0,111400.0,0.63698723]
[1757038070357,0.07069515,111410.0,111400.0,0.93079045]
[1757038070747,0.07069515,111410.0,111400.0,0.70083322]
[1757038071854,0.04764515,111410.0,111400.0,0.70083322]
[1757038072063,0.04764515,111410.0,111400.0,1.07283322]
[1757038072253,0.26191352,111420.0,111410.0,0.03623]
[1757038072457,0.30945867,111420.0,111410.0,0.62698723]
[1757038072756,0.26181352,111420.0,111410.0,0.62698723]
[1757038073055,0.30945867,111420.0,111410.0,0.69083322]
[1757038073356,0.30945867,111420.0,111410.0,0.62698723]
[1757038073555,0.07950144,111420.0,111410.0,0.39703]
[1757038073855,0.09305144,111420.0,111410.0,0.39703]
[1757038076158,0.09305144,111420.0,111410.0,0.46950449]
[1757038078256,0.3228318,111420.0,111410.0,0.45612449]
[1757038078964,0.80261216,111420.0,111410.0,0.39365]
[1757038079158,0.5728318,111420.0,111410.0,0.3708]
[1757038079360,0.0366,111410.0,111400.0,0.38385]
[1757038079566,0.31402551,111410.0,111400.0,0.38365]
[1757038080164,0.31402551,111410.0,111400.0,0.39365]
[1757038080370,0.31402551,111410.0,111400.0,0.38365]
[1757038080753,0.31402551,111410.0,111400.0,0.38465]
[1757038081265,1.13762551,111410.0,111400.0,0.011]
[1757038081867,1.49842551,111410.0,111400.0,0.011]
[1757038082065,1.49842551,111410.0,111400.0,0.03385]
[1757038082261,1.13762551,111410.0,111400.0,0.03385]
[1757038082460,1.74842551,111410.0,111400.0,0.012]
[1757038083070,1.74842551,111410.0,111400.0,0.011]
[1757038083370,1.74842551,111410.0,111400.0,0.01]
[1757038083564,1.38762551,111410.0,111400.0,0.01]
[1757038083771,1.74842551,111410.0,111400.0,0.01]
[1757038084570,1.74842551,111410.0,111400.0,0.03285]
[1757038084780,1.38758551,111410.0,111400.0,0.03285]
[1757038090469,1.38758551,111410.0,111400.0,0.09669599]
[1757038090669,1.38758551,111410.0,111400.0,0.03285]
[1757038090876,1.38758551,111410.0,111400.0,0.45749599]
[1757038092179,1.38758551,111410.0,111400.0,0.09669599]
[1757038097000,1.38758551,111410.0,111400.0,0.09669599]
[1757038099401,1.38758551,111410.0,111400.0,0.06384599]
[1757038099597,1.38758551,111410.0,111400.0,0.07384599]
[1757038101106,1.38758551,111410.0,111400.0,0.06384599]
[1757038102600,1.33994036,111410.0,111400.0,0.06384599]
[1757038103006,1.38758551,111410.0,111400.0,0.06384599]
[1757038103801,0.33424515,111410.0,111400.0,0.06384599]
[1757038104104,1.38746551,111410.0,111400.0,0.08650599]
[1757038105005,0.56402551,111410.0,111400.0,0.08650599]
[1757038105206,1.38742551,111410.0,111400.0,0.08650599]
[1757038105701,1.15764515,111410.0,111400.0,0.08650599]
[1757038105906,1.38742551,111410.0,111400.0,0.08650599]
[1757038106606,0.56402551,111410.0,111400.0,0.08650599]
[1757038106807,1.38742551,111410.0,111400.0,0.08650599]
[1757038107407,1.13742551,111410.0,111400.0,0.08650599]
[1757038108807,0.08424515,111410.0,111400.0,0.08650599]
[1757038109004,1.13738551,111410.0,111400.0,0.08650599]
[1757038109204,0.0366,111410.0,111400.0,0.33650599]
[1757038109410,0.0366,111410.0,111400.0,0.69730599]
[1757038109609,0.02305,111410.0,111400.0,0.70996599]
[1757038110308,0.03695,111410.0,111400.0,0.70996599]
[1757038110905,0.26673036,111410.0,111400.0,0.70996599]
[1757038111412,0.26673036,111410.0,111400.0,0.69730599]
[1757038111712,0.03695,111410.0,111400.0,0.69730599]
[1757038112712,0.03695,111410.0,111400.0,0.63346]
[1757038113212,0.03695,111410.0,111400.0,1.23324036]
[1757038113406,0.25223665,111420.0,111400.0,1.31589894]
[1757038113609,0.3209918,111420.0,111410.0,0.44747459]
[1757038113910,0.03466,111420.0,111410.0,0.77990692]
[1757038114212,1.06714036,111430.0,111410.0,0.95590036]
[1757038114408,0.02111,111420.0,111410.0,0.95610036]
[1757038114610,0.02111,111420.0,111410.0,0.95590036]
[1757038115415,0.02111,111420.0,111410.0,1.93218892]
[1757038115814,0.25277772,111430.0,111410.0,1.93218892]
[1757038116004,0.04764515,111420.0,111410.0,1.93238892]
[1757038116209,0.04764515,111420.0,111410.0,2.29298892]
[1757038116408,0.25277772,111430.0,111410.0,2.29298892]
[1757038116609,0.27388772,111430.0,111420.0,0.44735585]
[1757038116813,0.27378772,111430.0,111420.0,0.44735585]
[1757038117214,0.32143287,111430.0,111420.0,0.44735585]
[1757038118617,0.02211,111430.0,111420.0,0.71918858]
[1757038118814,0.02211,111430.0,111420.0,1.02918858]
[1757038119014,0.02211,111430.0,111420.0,0.71918858]
[1757038119615,0.001,111430.0,111420.0,1.27959363]
[1757038120007,0.0001,111440.0,111430.0,0.04432]
[1757038120310,0.02296161,111450.0,111430.0,1.89191458]
[1757038120510,0.08275515,111450.0,111440.0,0.38346]
[1757038120716,0.08265515,111450.0,111440.0,0.38346]
[1757038120912,0.02111,111450.0,111440.0,0.62590036]
[1757038121117,0.03511,111460.0,111450.0,0.03266]
[1757038121312,0.03501,111460.0,111450.0,0.39346]
[1757038121511,0.08265515,111460.0,111450.0,1.21662]
[1757038122210,0.08265515,111460.0,111450.0,1.28043422]
[1757038122513,0.08365515,111460.0,111450.0,1.28043422]
[1757038123213,0.09262216,111460.0,111450.0,1.64043422]
[1757038123420,0.09262216,111460.0,111450.0,1.57662]
[1757038123719,0.09262216,111460.0,111450.0,1.52662]
[1757038124019,0.09262216,111460.0,111450.0,1.21662]
[1757038124720,0.09262216,111460.0,111450.0,1.2165]
[1757038124912,0.32240252,111460.0,111450.0,1.2165]
[1757038125415,0.07872216,111460.0,111450.0,1.22916]
[1757038125611,0.07872216,111460.0,111450.0,1.56916]
[1757038125820,0.07872216,111460.0,111450.0,1.22916]
[1757038126120,0.07872216,111460.0,111450.0,1.59916]
[1757038126121,0.09185216,111460.0,111450.0,1.59916]
[1757038126316,0.06975515,111460.0,111450.0,1.22916]
[1757038126515,0.06975515,111460.0,111450.0,1.45894036]
[1757038126908,0.02211,111460.0,111450.0,1.45894036]
[1757038129520,0.02211,111460.0,111450.0,2.15865876]
[1757038129521,0.001,111460.0,111450.0,2.15865876]
[1757038130624,0.001,111460.0,111450.0,2.16783155]
[1757038131822,0.0001,111470.0,111450.0,2.16783155]
[1757038132029,0.02295,111470.0,111460.0,0.38766]
[1757038132229,0.02285,111470.0,111460.0,0.38766]
[1757038132425,0.0318242,111480.0,111470.0,0.04279]
[1757038132624,0.0448542,111480.0,111470.0,1.22639]
[1757038132824,0.09249935,111480.0,111470.0,1.22639]
[1757038133024,0.09249935,111480.0,111470.0,1.21473]
[1757038133224,0.09249935,111480.0,111470.0,1.28535729]
[1757038135432,0.32205859,111480.0,111470.0,1.51491653]
[1757038135732,0.09249935,111480.0,111470.0,0.69211653]
[1757038135929,0.32205859,111480.0,111470.0,1.51487653]
[1757038136124,0.09249935,111480.0,111470.0,1.51487653]
[1757038136332,0.32205859,111480.0,111470.0,1.51487653]
[1757038136533,0.32205859,111480.0,111470.0,1.51483653]
[1757038136833,0.32305859,111480.0,111470.0,1.51483653]
[1757038137232,0.09349935,111480.0,111470.0,1.28527729]
[1757038137533,0.55261783,111480.0,111470.0,1.28527729]
[1757038138420,0.55261783,111480.0,111470.0,1.28523729]
[1757038138821,0.32305859,111480.0,111470.0,1.28523729]
[1757038139136,0.09349935,111480.0,111470.0,1.28523729]
[1757038139333,0.32305859,111480.0,111470.0,1.28523729]
[1757038139535,0.09349935,111480.0,111470.0,1.28523729]
[1757038139836,0.55261783,111480.0,111470.0,1.28523729]
[1757038141030,0.32305859,111480.0,111470.0,1.28523729]
[1757038141231,0.55261783,111480.0,111470.0,1.28523729]
[1757038141933,0.09349935,111480.0,111470.0,1.28523729]
[1757038142328,0.32305859,111480.0,111470.0,1.51479653]
[1757038142827,0.32305859,111480.0,111470.0,1.52641653]
[1757038143340,0.30992859,111480.0,111470.0,0.70377653]
[1757038143538,0.30992859,111480.0,111470.0,1.52637653]
[1757038143740,0.08036935,111480.0,111470.0,1.52637653]
[1757038144035,0.30992859,111480.0,111470.0,1.52637653]
[1757038144232,0.32305859,111480.0,111470.0,1.52637653]
[1757038144731,0.32305859,111480.0,111470.0,0.69211653]
[1757038144938,0.32305859,111480.0,111470.0,1.51471653]
[1757038145736,0.32305859,111480.0,111470.0,1.52637653]
[1757038146637,0.32305859,111480.0,111470.0,1.51471653]
[1757038147828,0.32305859,111480.0,111470.0,1.51467653]
[1757038148030,1.87447437,111480.0,111470.0,0.3708]
[1757038148226,0.03598,111470.0,111460.0,0.03133]
[1757038148431,0.03598,111470.0,111460.0,0.39193]
[1757038148432,0.08362515,111470.0,111460.0,0.39193]
[1757038148632,0.31318439,111470.0,111460.0,0.39193]
[1757038148941,0.31318439,111470.0,111460.0,1.21445]
[1757038149634,0.0231042,111480.0,111460.0,2.28622848]
[1757038149839,0.03608,111480.0,111470.0,0.62314924]
[1757038150032,0.26553924,111480.0,111470.0,0.69539822]
[1757038150232,0.26553924,111480.0,111470.0,0.62314924]
[1757038150432,0.31318439,111480.0,111470.0,0.39359]
[1757038150633,0.31318439,111480.0,111470.0,0.38193]
[1757038151434,0.31418439,111480.0,111470.0,0.38193]
[1757038151834,0.54374363,111480.0,111470.0,0.38193]
[1757038152042,0.54374363,111480.0,111470.0,1.20445]
[1757038154842,0.54374363,111480.0,111470.0,1.27498389]
[1757038160747,0.31418439,111480.0,111470.0,1.50454313]
[1757038160949,0.001,111480.0,111470.0,2.35576237]
[1757038161248,0.001,111480.0,111470.0,2.19001735]
[1757038161849,0.001,111480.0,111470.0,1.96045811]
[1757038162454,0.001,111480.0,111470.0,2.19001735]
[1757038163857,0.25228924,111480.0,111470.0,1.60033811]
[1757038164156,0.25228924,111480.0,111470.0,1.82989735]
[1757038164653,0.23055924,111480.0,111470.0,2.15989735]
[1757038165057,0.23055924,111480.0,111470.0,1.27368313]
[1757038165259,0.001,111480.0,111470.0,1.76604313]
[1757038165444,0.001,111480.0,111470.0,2.11604313]
[1757038171463,0.001,111480.0,111470.0,2.17985735]
[1757038171669,0.0001,111490.0,111480.0,0.1338046]
[1757038171967,0.0001,111500.0,111490.0,0.02818]
[1757038172163,0.04764515,111500.0,111490.0,2.18272855]
[1757038172460,0.02183,111510.0,111500.0,0.04511]
[1757038172764,0.25128924,111510.0,111500.0,0.63546924]
[1757038172962,0.29893439,111510.0,111500.0,0.63546924]
[1757038173161,0.04764515,111510.0,111500.0,0.4264513]
[1757038173369,0.04764515,111510.0,111500.0,0.88556978]
[1757038173571,0.04764515,111510.0,111500.0,1.23556978]
[1757038173770,0.01346,111520.0,111500.0,1.23556978]
[1757038173964,0.03519,111520.0,111510.0,0.61280924]
[1757038174166,0.26464924,111520.0,111510.0,1.20549]
[1757038174368,0.26464924,111520.0,111510.0,1.43504924]
[1757038174674,0.32129032,111520.0,111510.0,1.43500924]
[1757038175277,0.57129032,111520.0,111510.0,1.20545]
[1757038175575,0.57129032,111520.0,111510.0,0.61280924]
[1757038175875,0.34173108,111520.0,111510.0,1.20541]
[1757038176077,0.57129032,111520.0,111510.0,1.20541]
[1757038176272,0.57129032,111520.0,111510.0,1.43496924]
[1757038178377,0.57129032,111520.0,111510.0,1.43492924]
[1757038181376,0.34173108,111520.0,111510.0,1.43492924]
[1757038181775,0.34121108,111520.0,111510.0,1.43492924]
[1757038182480,0.57077032,111520.0,111510.0,1.43492924]
[1757038182875,0.34121108,111520.0,111510.0,1.43492924]
[1757038183081,0.57077032,111520.0,111510.0,1.43492924]
[1757038184082,0.34121108,111520.0,111510.0,1.43492924]
[1757038184276,0.57077032,111520.0,111510.0,1.43492924]
[1757038185182,0.80032956,111520.0,111510.0,1.20525]
[1757038185577,0.80032956,111520.0,111510.0,0.38325]
[1757038185778,0.80032956,111520.0,111510.0,0.3608]
[1757038186681,0.80032956,111520.0,111510.0,0.39353]
[1757038188193,2.30032956,111520.0,111510.0,0.39353]
[1757038188784,1.84121108,111520.0,111510.0,0.39353]
[1757038189082,2.30032956,111520.0,111510.0,0.39353]
[1757038191083,1.84121108,111520.0,111510.0,0.39353]
[1757038191385,2.30032956,111520.0,111510.0,0.39353]
[1757038192686,2.25268441,111520.0,111510.0,0.39353]
[1757038193088,2.30032956,111520.0,111510.0,0.39353]
[1757038194384,3.12220956,111520.0,111510.0,0.39353]
[1757038194791,0.80032956,111520.0,111510.0,0.39353]
[1757038197287,0.01354,111510.0,111500.0,0.42476519]
[1757038197491,1.72546561,111510.0,111490.0,0.42476519]
[1757038197691,0.26560523,111500.0,111490.0,0.02293]
[1757038197882,0.26560523,111500.0,111480.0,0.43456519]
[1757038197883,0.03607,111490.0,111480.0,0.45749519]
[1757038198084,1.13509038,111490.0,111480.0,0.07273]
[1757038198285,1.13509038,111490.0,111480.0,0.03273]
[1757038200392,1.13509038,111490.0,111480.0,0.02273]
[1757038200584,1.13509038,111490.0,111480.0,0.001]
[1757038200779,1.97542561,111490.0,111480.0,0.001]
[1757038201088,0.03607,111480.0,111470.0,0.0002]
[1757038201287,0.03607,111470.0,111460.0,0.03293]
[1757038201488,1.13313038,111470.0,111460.0,0.03273]
[1757038201793,0.31125038,111470.0,111460.0,0.02273]
[1757038201990,1.13313038,111470.0,111460.0,0.03273]
[1757038202890,0.31125038,111470.0,111460.0,0.03273]
[1757038203195,0.31125038,111470.0,111460.0,0.03473]
[1757038203196,1.13317038,111470.0,111460.0,0.03473]
[1757038203885,1.13317038,111470.0,111460.0,0.03573]
[1757038204082,1.14231019,111470.0,111460.0,0.03573]
[1757038205888,0.32039019,111470.0,111460.0,0.03573]
[1757038206088,0.32039019,111470.0,111460.0,0.88854523]
[1757038206089,0.02253,111470.0,111460.0,0.88854523]
[1757038207193,0.02253,111470.0,111460.0,0.65901]
[1757038207392,0.045056,111470.0,111460.0,0.64653]
[1757038207693,0.32223638,111470.0,111460.0,0.64653]
[1757038207895,0.09270115,111470.0,111460.0,0.64653]
[1757038208092,0.32223638,111470.0,111460.0,0.64653]
[1757038209790,0.09270115,111470.0,111460.0,0.64653]
[1757038209995,0.32223638,111470.0,111460.0,0.64653]
[1757038211899,0.32223638,111470.0,111460.0,0.66653]
[1757038213189,0.32223638,111470.0,111460.0,0.65653]
[1757038213491,0.32223638,111470.0,111460.0,0.66653]
[1757038213998,0.32223638,111470.0,111460.0,0.05573]
[1757038214605,0.32223638,111470.0,111460.0,0.04573]
[1757038214796,0.32223638,111470.0,111460.0,0.05573]
[1757038217200,0.32223638,111470.0,111460.0,0.04573]
[1757038217404,0.32223638,111470.0,111460.0,0.05573]
[1757038220197,0.32223638,111470.0,111460.0,0.033]
[1757038220395,1.14431638,111470.0,111460.0,0.05444]
[1757038220797,1.14431638,111470.0,111460.0,0.03444]
[1757038222600,1.09667123,111470.0,111460.0,0.03444]
[1757038223101,1.39431638,111470.0,111460.0,0.013]
[1757038223405,1.75511638,111470.0,111460.0,0.003]
[1757038224212,1.75611638,111470.0,111460.0,0.002]
[1757038224406,0.03531,111460.0,111450.0,0.0002]
[1757038224707,1.13461038,111460.0,111450.0,0.03144]
[1757038228109,1.13461038,111460.0,111450.0,0.09520519]
[1757038231710,0.03531,111450.0,111440.0,0.4672147]
[1757038231909,0.31249038,111450.0,111440.0,0.7270147]
[1757038232213,0.26484523,111450.0,111440.0,0.7270147]
[1757038233114,0.26484523,111450.0,111440.0,0.7370147]
[1757038233716,0.26484523,111450.0,111440.0,0.7380147]
[1757038234116,0.26484523,111450.0,111440.0,0.7280147]
[1757038234316,0.26484523,111450.0,111440.0,0.7380147]
[1757038234517,0.03531,111450.0,111440.0,0.7380147]
[1757038234816,0.26484523,111450.0,111440.0,0.7390147]
[1757038238322,0.31249038,111450.0,111440.0,0.7390147]
[1757038243526,0.31249038,111450.0,111440.0,0.71800519]
[1757038250335,0.31249038,111450.0,111440.0,0.65424]
[1757038252438,0.31249038,111450.0,111440.0,0.73423858]
[1757038252838,0.26484523,111450.0,111440.0,0.73423858]
[1757038253039,0.31249038,111450.0,111440.0,0.73423858]
[1757038254240,0.31249038,111450.0,111440.0,0.72423858]
[1757038254533,0.31249038,111450.0,111440.0,0.73423858]
[1757038255135,0.31249038,111450.0,111440.0,0.65424]
[1757038255437,0.31249038,111450.0,111440.0,0.73423858]
[1757038257641,0.31266402,111450.0,111440.0,0.73423858]
[1757038259242,0.54237289,111450.0,111440.0,0.73423858]
[1757038259541,0.54237289,111450.0,111440.0,0.29344]
[1757038260038,1.15317289,111450.0,111440.0,0.06591821]
[1757038260234,1.15317289,111450.0,111440.0,0.002]
[1757038261341,0.90317289,111450.0,111440.0,0.002]
[1757038263039,1.38288176,111450.0,111440.0,0.002]
[1757038264037,0.01267,111400.0,111390.0,0.06391114]
[1757038264241,0.01267,111400.0,111380.0,0.38279]
[1757038264242,0.03551,111390.0,111380.0,0.38279]
[1757038264438,0.25254887,111390.0,111380.0,0.45658]
[1757038264840,0.25254887,111390.0,111380.0,0.77658]
[1757038265037,0.25254887,111390.0,111380.0,0.45658]
[1757038265240,0.25154887,111390.0,111380.0,0.45658]
[1757038265837,0.49392774,111390.0,111380.0,0.44279]
[1757038266240,1.36361289,111390.0,111380.0,0.44279]
[1757038266640,1.36361289,111390.0,111380.0,0.4228]
[1757038266837,1.36361289,111390.0,111380.0,0.3628]
[1757038267146,1.73341446,111390.0,111380.0,0.002]
[1757038267550,1.73341446,111390.0,111380.0,0.003]
[1757038268051,0.91137446,111390.0,111380.0,0.003]
[1757038268249,1.73349446,111390.0,111380.0,0.003]
[1757038268444,1.73349446,111390.0,111380.0,0.02499]
[1757038269038,0.91137446,111390.0,111380.0,0.02499]
[1757038269341,1.37273446,111390.0,111380.0,0.02499]
[1757038270937,1.36014446,111390.0,111380.0,0.03878]
[1757038271345,1.37281446,111390.0,111380.0,0.03878]
[1757038271545,1.37281446,111390.0,111380.0,0.02499]
[1757038271842,0.55057446,111390.0,111380.0,0.02499]
[1757038272152,1.37281446,111390.0,111380.0,0.02499]
[1757038272652,1.73361446,111390.0,111380.0,0.003]
[1757038273054,1.96332333,111390.0,111380.0,0.003]
[1757038273252,2.21332333,111390.0,111380.0,0.003]
[1757038274155,0.03551,111360.0,111350.0,0.39658]
[1757038274349,1.31720774,111360.0,111350.0,0.41279]
[1757038274653,1.36485289,111360.0,111350.0,0.41279]
[1757038275154,1.72565289,111360.0,111350.0,0.05199]
[1757038275458,1.95536176,111360.0,111350.0,0.004]
[1757038275658,1.95536176,111360.0,111350.0,0.03304]
[1757038276048,1.95536176,111360.0,111350.0,0.01]
[1757038277554,1.95536176,111360.0,111340.0,0.38394]
[1757038277555,0.03718,111350.0,111340.0,0.38394]
[1757038277760,0.54424289,111350.0,111340.0,0.02304]
[1757038278160,0.03718,111340.0,111330.0,0.39773]
[1757038278463,1.36660289,111340.0,111330.0,0.64384]
[1757038278654,1.72740289,111340.0,111330.0,0.28304]
[1757038278854,1.36660289,111340.0,111330.0,0.28304]
[1757038279655,0.49659774,111340.0,111330.0,0.54638]
[1757038279858,1.07639887,111350.0,111340.0,0.03638]
[1757038280054,1.07639887,111350.0,111340.0,0.39718]
[1757038280560,1.36768289,111350.0,111340.0,0.38384]
[1757038280758,0.01393,111340.0,111330.0,0.02314]
[1757038280961,0.90504289,111340.0,111330.0,0.02304]
[1757038281157,0.90504289,111340.0,111330.0,0.02404]
[1757038281358,0.90504289,111340.0,111330.0,0.001]
[1757038281359,1.13475176,111340.0,111330.0,0.001]
[1757038281655,1.38475176,111340.0,111330.0,0.001]
[1757038282158,0.03718,111330.0,111320.0,0.0001]
[1757038282362,0.03718,111320.0,111310.0,0.38394]
[1757038282566,0.54424289,111320.0,111310.0,0.65384]
[1757038282751,0.49659774,111320.0,111310.0,0.65384]
[1757038283260,0.49659774,111320.0,111310.0,0.66718]
[1757038283654,0.54424289,111320.0,111310.0,0.66718]
[1757038284461,0.54324289,111320.0,111310.0,0.66718]
[1757038284657,0.82266,111330.0,111320.0,0.03638]
[1757038284864,1.05226887,111330.0,111320.0,0.71718]
[1757038285058,0.22970887,111330.0,111320.0,0.71718]
[1757038285259,0.25295887,111330.0,111320.0,0.71718]
[1757038285557,0.25295887,111330.0,111320.0,0.39718]
[1757038285750,0.25295887,111330.0,111320.0,0.76718]
[1757038285949,0.25295887,111330.0,111320.0,0.74818]
[1757038286151,0.25295887,111330.0,111320.0,0.44818]
[1757038287362,0.25295887,111330.0,111320.0,0.76818]
[1757038287558,0.25295887,111330.0,111320.0,0.74818]
[1757038288155,0.25295887,111330.0,111320.0,0.77818]
[1757038288357,0.25295887,111330.0,111320.0,0.45818]
[1757038288556,0.25295887,111330.0,111320.0,0.39818]
[1757038288756,0.25295887,111330.0,111320.0,0.44818]
[1757038291473,0.49659774,111330.0,111320.0,0.44818]
[1757038291968,0.26688887,111330.0,111320.0,0.44818]
[1757038292159,0.25295887,111330.0,111320.0,0.44818]
[1757038292667,0.53031289,111330.0,111320.0,0.44818]
[1757038293268,0.53031289,111330.0,111320.0,0.39818]
[1757038293662,1.12328402,111330.0,111320.0,0.39818]
[1757038294462,1.35299289,111330.0,111320.0,0.39818]
[1757038294961,0.02335,111340.0,111330.0,0.01334]
[1757038295167,0.43291,111350.0,111340.0,0.03638]
[1757038295368,0.49659774,111350.0,111340.0,0.03638]
[1757038295665,0.31453402,111350.0,111340.0,0.39718]
[1757038296667,0.31653402,111350.0,111340.0,0.39718]
[1757038298467,0.31753402,111350.0,111340.0,0.39718]
[1757038299365,0.31753402,111350.0,111340.0,0.03638]
[1757038299666,0.54724289,111350.0,111340.0,0.39718]
[1757038300261,0.31753402,111350.0,111340.0,0.39718]
[1757038301169,0.30360402,111350.0,111340.0,0.39718]
[1757038301467,0.31753402,111350.0,111340.0,0.39718]
[1757038301769,0.54724289,111350.0,111340.0,0.02304]
[1757038301970,0.90804289,111350.0,111340.0,0.02304]
[1757038303370,0.92875988,111350.0,111340.0,0.02304]
[1757038305971,0.56795988,111350.0,111340.0,0.02304]
[1757038306376,0.92875988,111350.0,111340.0,0.02304]
[1757038308078,1.17875988,111350.0,111340.0,0.02304]
[1757038308573,1.17875988,111350.0,111330.0,0.0001]
[1757038308870,1.36610289,111340.0,111330.0,0.02246]
[1757038309076,1.36610289,111340.0,111330.0,0.02236]
[1757038310268,0.02398,111350.0,111340.0,0.03613]
[1757038310469,0.001,111350.0,111340.0,1.46634774]
[1757038310680,0.001,111350.0,111340.0,1.23663887]
[1757038310882,0.001,111350.0,111340.0,1.00693]
[1757038311180,0.001,111350.0,111340.0,1.20047887]
[1757038311372,0.001,111350.0,111340.0,1.22047887]
[1757038312777,0.22980887,111360.0,111340.0,1.22047887]
[1757038312974,0.30033402,111360.0,111350.0,0.39693]
[1757038313174,0.30023402,111360.0,111350.0,0.39693]
[1757038313479,0.30023402,111360.0,111350.0,0.77693]
[1757038313667,0.30023402,111360.0,111350.0,0.39693]
[1757038313867,0.30023402,111360.0,111350.0,0.76693]
[1757038314073,0.30023402,111360.0,111350.0,0.74693]
[1757038314277,0.30023402,111360.0,111350.0,0.39693]
[1757038314676,0.30023402,111360.0,111350.0,0.74693]
[1757038315082,0.30023402,111360.0,111350.0,0.39693]
[1757038315283,0.22970887,111360.0,111350.0,1.77911887]
[1757038315482,0.25268887,111370.0,111360.0,0.03613]
[1757038315682,0.25258887,111370.0,111360.0,0.75693]
[1757038315981,0.30023402,111370.0,111360.0,0.98663887]
[1757038316278,0.02298,111380.0,111370.0,0.03613]
[1757038316482,0.25258887,111380.0,111370.0,0.62663887]
[1757038316678,0.25258887,111380.0,111370.0,1.75911887]
[1757038317477,0.02388,111380.0,111370.0,1.52941]
[1757038317779,0.02388,111380.0,111370.0,1.21941]
[1757038320790,0.02388,111380.0,111370.0,1.54941]
[1757038320992,0.001,111380.0,111370.0,1.77937003]
[1757038321186,0.001,111380.0,111370.0,1.84288025]
[1757038321392,0.001,111380.0,111370.0,1.77937003]
[1757038321695,0.001,111380.0,111370.0,1.84288025]
[1757038322496,0.001,111380.0,111370.0,1.84272025]
[1757038323281,0.001,111380.0,111370.0,1.61376022]
[1757038323487,0.02288,111380.0,111370.0,1.84372025]
[1757038323685,0.02288,111380.0,111370.0,1.84368025]
[1757038324491,0.02288,111380.0,111370.0,1.78017003]
[1757038324684,0.26208204,111390.0,111380.0,0.03613]
[1757038324884,0.26198204,111390.0,111380.0,0.72693]